bitfinex-derivatives/quotes_BNBF0:USTF0_20250709
["timestamp","ask_amount","ask_price","bid_price","bid_amount"]
[1752089055077,0.26076303,667.66,666.86,1.53155673]
[1752089055276,0.26076303,667.66,666.87,1.53155673]
[1752089055477,0.26076303,667.66,666.76,1.6780049]
[1752089055478,0.26076303,667.66,666.88,1.53155673]
[1752089055675,0.26076303,667.66,666.89,1.53155673]
[1752089055878,0.26076303,667.66,666.9,1.53155673]
[1752089056078,0.26076303,667.66,666.91,1.53155673]
[1752089056375,0.26076303,667.66,666.92,1.53155673]
[1752089056675,3.3515222,668.07,666.93,1.53155673]
[1752089056878,0.26071029,667.72,666.94,1.53155673]
[1752089057076,3.3515222,668.15,666.95,1.53155673]
[1752089057277,0.26071322,667.72,666.96,1.53155673]
[1752089057480,3.3515222,668.16,666.97,1.53155673]
[1752089057680,3.3515222,668.24,666.98,1.53155673]
[1752089057975,3.3515222,668.24,666.99,1.53155673]
[1752089058276,3.3515222,668.25,667.0,1.53155673]
[1752089058478,3.3515222,668.26,667.01,1.53155673]
[1752089058681,3.3515222,668.26,667.02,1.53155673]
[1752089058877,3.3515222,668.26,667.03,1.53155673]
[1752089059084,3.3515222,668.26,667.04,1.53155673]
[1752089059377,3.3515222,668.28,667.05,1.53155673]
[1752089059582,3.3515222,668.28,667.06,1.53155673]
[1752089059779,3.3515222,668.28,667.07,1.53155673]
[1752089059982,3.3515222,668.29,667.08,1.53155673]
[1752089060181,3.3515222,668.37,667.09,1.53155673]
[1752089060376,3.3515222,668.37,666.66,1.6780049]
[1752089060377,3.3515222,668.37,667.1,1.53155673]
[1752089060582,3.3515222,668.38,667.11,1.53155673]
[1752089060781,3.3515222,668.37,667.12,1.53155673]
[1752089060980,3.3515222,668.37,667.13,1.53155673]
[1752089061179,3.3515222,668.42,666.65,1.788]
[1752089061382,0.26066244,668.06,666.66,1.52684663]
[1752089061585,0.26066244,668.06,666.67,1.52684663]
[1752089061884,0.26066244,668.06,666.68,1.52684663]
[1752089062084,0.26066244,668.06,666.69,1.52684663]
[1752089062282,0.26066244,668.06,666.7,1.52684663]
[1752089062483,0.26066244,668.06,666.71,1.52684663]
[1752089062683,0.26066244,668.06,666.72,1.52684663]
[1752089062887,0.26066244,668.06,666.73,1.52684663]
[1752089063084,0.26066244,668.06,666.74,1.52684663]
[1752089063284,0.26066244,668.06,666.75,1.52684663]
[1752089063585,0.26066244,668.06,666.76,1.52684663]
[1752089063785,0.26066244,668.06,666.77,1.52684663]
[1752089064088,0.26066244,668.06,666.78,1.52684663]
[1752089064287,0.26066244,668.06,666.79,1.52684663]
[1752089064485,0.26066244,668.06,666.8,1.52684663]
[1752089064685,0.26066244,668.06,666.81,1.52684663]
[1752089064889,0.26066244,668.06,666.82,1.52684663]
[1752089065086,0.26066244,668.06,666.83,1.52684663]
[1752089065290,0.26066244,668.06,666.84,1.52684663]
[1752089065490,0.26066244,668.06,666.85,1.52684663]
[1752089065685,0.26066244,668.06,666.86,1.52684663]
[1752089065890,0.26066244,668.06,666.87,1.52684663]
[1752089066188,0.26066244,668.06,666.88,1.52684663]
[1752089066384,0.26066244,668.06,666.89,1.52684663]
[1752089066590,0.26066244,668.06,666.9,1.52684663]
[1752089066789,0.26066244,668.06,666.91,1.52684663]
[1752089066987,0.26066244,668.06,666.92,1.52684663]
[1752089067187,0.26066244,668.06,666.93,1.52684663]
[1752089067493,0.26066244,668.06,666.94,1.52684663]
[1752089067692,0.26066244,668.06,666.95,1.52684663]
[1752089067989,0.26066244,668.06,666.96,1.52684663]
[1752089068287,0.26066244,668.06,666.97,1.52684663]
[1752089068497,0.26066244,668.06,666.98,1.52684663]
[1752089068685,0.26066244,668.06,666.99,1.52684663]
[1752089068888,0.26066244,668.06,667.0,1.52684663]
[1752089069088,0.26066244,668.06,667.01,1.52684663]
[1752089069391,0.26066244,668.06,667.02,1.52684663]
[1752089069691,0.26066244,668.06,667.03,1.52684663]
[1752089069888,0.26066244,668.06,667.04,1.52684663]
[1752089070192,0.26066244,668.06,667.05,1.52684663]
[1752089070387,0.26066244,668.06,667.06,1.52684663]
[1752089070592,0.26066244,668.06,667.07,1.52684663]
[1752089070892,0.26066244,668.06,667.08,1.52684663]
[1752089071087,0.26066244,668.06,666.8,1.6780049]
[1752089071288,0.26066244,668.06,666.81,3.20021257]
[1752089071488,0.26066244,668.06,666.82,1.52220767]
[1752089071691,0.26066244,668.06,666.83,1.52220767]
[1752089071890,0.26066244,668.06,666.84,1.52220767]
[1752089072091,0.26066244,668.06,666.85,1.52220767]
[1752089072290,0.26066244,668.06,666.86,1.52220767]
[1752089072488,0.26066244,668.06,666.87,1.52220767]
[1752089072691,0.26066244,668.06,666.88,1.52220767]
[1752089072988,0.26066244,668.06,666.89,1.52220767]
[1752089073193,0.26066244,668.06,666.9,1.52220767]
[1752089073393,0.26066244,668.06,666.91,1.52220767]
[1752089073592,0.26066244,668.06,666.92,1.52220767]
[1752089073790,0.26066244,668.06,666.93,1.52220767]
[1752089073991,0.26066244,668.06,666.94,1.52220767]
[1752089074190,0.26066244,668.06,666.95,1.52220767]
[1752089074394,0.26066244,668.06,666.96,1.52220767]
[1752089074693,0.26066244,668.06,666.97,1.52220767]
[1752089074890,0.26066244,668.06,666.98,1.52220767]
[1752089075089,0.26066244,668.06,666.99,1.52220767]
[1752089075393,0.26066244,668.06,667.0,1.52220767]
[1752089075588,0.26066244,668.06,667.01,1.52220767]
[1752089075792,0.26066244,668.06,667.02,1.52220767]
[1752089075992,0.26066244,668.06,667.03,1.52220767]
[1752089076294,0.26066244,668.06,667.04,1.52220767]
[1752089076590,0.26066244,668.06,667.05,1.52220767]
[1752089076889,0.26066244,668.06,667.06,1.52220767]
[1752089077089,0.26066244,668.06,667.07,1.52220767]
[1752089077291,0.26066244,668.06,667.08,1.52220767]
[1752089077490,0.26066244,668.06,667.09,1.52220767]
[1752089077689,0.26066244,668.06,667.02,2.356]
[1752089077890,0.26066244,668.06,667.03,1.52328436]
[1752089078090,0.26066244,668.06,667.04,1.52328436]
[1752089078292,0.26066244,668.06,667.05,1.52328436]
[1752089078493,0.26066244,668.06,667.06,1.52328436]
[1752089078692,0.26066244,668.06,667.07,1.52328436]
[1752089078992,0.26066244,668.06,667.08,1.52328436]
[1752089079193,0.26066244,668.06,667.09,1.52328436]
[1752089079492,0.26066244,668.06,667.02,2.356]
[1752089079795,0.26066244,668.06,667.03,1.5232808]
[1752089079992,0.26066244,668.06,667.04,1.5232808]
[1752089080197,0.26066244,668.06,667.05,1.5232808]
[1752089080395,0.26066244,668.06,667.06,1.5232808]
[1752089080691,0.26066244,668.06,667.07,1.5232808]
[1752089080895,0.26066244,668.06,667.08,1.5232808]
[1752089081095,0.26066244,668.06,667.09,1.5232808]
[1752089081296,0.26066244,668.06,667.1,1.5232808]
[1752089081492,0.26066244,668.06,667.11,1.5232808]
[1752089081794,0.26066244,668.06,667.12,1.5232808]
[1752089081992,0.26066244,668.06,667.13,1.5232808]
[1752089082196,0.26066244,668.06,667.14,1.5232808]
[1752089082396,0.26066244,668.06,667.15,1.5232808]
[1752089082593,0.26066244,668.06,667.02,2.356]
[1752089082794,0.26066244,668.06,667.03,1.52355819]
[1752089083094,0.26066244,668.06,667.04,1.52355819]
[1752089083294,0.26066244,668.06,667.05,1.52355819]
[1752089083495,0.26066244,668.06,667.06,1.52355819]
[1752089083699,0.26066244,668.06,667.07,1.52355819]
[1752089083901,0.26066244,668.06,667.08,1.52355819]
[1752089084097,0.26066244,668.06,667.09,1.52355819]
[1752089084296,0.26066244,668.06,667.1,1.52355819]
[1752089084500,0.26066244,668.06,667.11,1.52355819]
[1752089084701,0.26066244,668.06,667.12,1.52355819]
[1752089085000,0.26066244,668.06,667.13,1.52355819]
[1752089085203,0.26066244,668.06,667.14,1.52355819]
[1752089085400,0.26066244,668.06,667.15,1.52355819]
[1752089085702,0.26066244,668.06,667.02,2.356]
[1752089085900,0.26066244,668.06,667.03,1.52419145]
[1752089086101,0.26066244,668.06,667.04,1.52419145]
[1752089086404,0.26066244,668.06,667.05,1.52419145]
[1752089086602,0.26066244,668.06,667.06,1.52419145]
[1752089086802,0.26066244,668.06,667.07,1.52419145]
[1752089087002,0.26066244,668.06,667.08,1.52419145]
[1752089087201,0.26066244,668.06,667.09,1.52419145]
[1752089087402,0.26066244,668.06,667.1,1.52419145]
[1752089087600,0.26066244,668.06,667.11,1.52419145]
[1752089087801,0.26066244,668.06,667.12,1.52419145]
[1752089088001,0.26066244,668.06,667.02,2.356]
[1752089088204,0.26066244,668.06,667.03,1.52482098]
[1752089088406,0.26066244,668.06,667.04,1.52482098]
[1752089088701,0.26066244,668.06,667.05,1.52482098]
[1752089088903,0.26066244,668.06,667.06,1.52482098]
[1752089089105,0.26066244,668.06,667.02,2.356]
[1752089089106,0.26066244,668.06,667.07,1.52482098]
[1752089089406,0.26066244,668.06,667.08,1.52482098]
[1752089089604,0.26066244,668.06,667.09,1.52482098]
[1752089089802,0.26066244,668.06,667.1,1.52482098]
[1752089090105,0.26066244,668.06,667.02,2.356]
[1752089090307,0.26066244,668.06,667.03,1.52557712]
[1752089090604,0.26066244,668.06,667.04,1.52557712]
[1752089090809,0.26066244,668.06,667.02,2.356]
[1752089094707,3.3515222,668.04,667.02,2.356]
[1752089095410,3.3515222,668.02,667.02,2.356]
[1752089095813,3.3515222,667.91,667.02,2.356]
[1752089096110,3.3515222,667.84,667.02,2.356]
[1752089096607,3.3515222,667.82,667.02,2.356]
[1752089097308,3.3515222,667.8,667.02,2.356]
[1752089098312,3.3515222,667.79,667.02,2.356]
[1752089098512,3.3515222,667.78,667.02,2.356]
[1752089098808,3.3515222,667.8,667.02,2.356]
[1752089099512,3.3515222,667.79,667.02,2.356]
[1752089100012,3.3515222,667.77,667.02,2.356]
[1752089100507,3.3515222,667.78,667.02,2.356]
[1752089100713,3.3515222,667.79,667.02,2.356]
[1752089101109,3.3515222,667.78,667.02,2.356]
[1752089101413,3.3515222,667.81,667.02,2.356]
[1752089101609,3.3515222,667.82,667.02,2.356]
[1752089102208,3.3515222,667.8,667.02,2.356]
[1752089102513,3.3515222,667.83,667.02,2.356]
[1752089102812,3.3515222,667.82,667.02,2.356]
[1752089103013,3.3515222,667.82,666.66,1.6780049]
[1752089103213,3.3515222,667.82,666.67,1.52983997]
[1752089103410,3.3515222,667.8,666.68,1.52983997]
[1752089103615,3.3515222,667.8,666.69,1.52983997]
[1752089103909,3.3515222,667.81,666.7,1.52983997]
[1752089104117,3.3515222,667.81,666.71,1.52983997]
[1752089104414,3.3515222,667.69,666.72,1.52983997]
[1752089104611,3.3515222,667.69,666.62,1.6780049]
[1752089104612,3.3515222,667.7,666.73,1.52983997]
[1752089104913,3.3515222,667.7,666.74,1.52983997]
[1752089105113,3.3515222,667.7,666.75,1.52983997]
[1752089105317,3.3515222,667.7,666.76,1.52983997]
[1752089105513,3.3515222,667.69,666.77,1.52983997]
[1752089105711,3.3515222,667.68,666.78,1.52983997]
[1752089105914,3.3515222,667.68,666.79,1.52983997]
[1752089106110,3.3515222,667.68,666.8,1.52983997]
[1752089106314,3.3515222,667.66,666.81,1.52983997]
[1752089106612,3.3515222,667.67,666.82,1.52983997]
[1752089106811,3.3515222,667.78,666.83,1.52983997]
[1752089107012,3.3515222,667.79,666.84,1.52983997]
[1752089107211,3.3515222,667.79,666.85,1.52983997]
[1752089107516,3.3515222,667.78,666.86,1.52983997]
[1752089107712,3.3515222,667.79,666.87,1.52983997]
[1752089108011,3.3515222,667.8,666.88,1.52983997]
[1752089108212,3.3515222,667.8,666.89,1.52983997]
[1752089108415,3.3515222,667.8,666.9,1.52983997]
[1752089108618,3.3515222,667.8,666.91,1.52983997]
[1752089108814,3.3515222,667.8,666.92,1.52983997]
[1752089109017,3.3515222,667.8,666.93,1.52983997]
[1752089109314,3.3515222,667.8,666.94,1.52983997]
[1752089109514,3.3515222,667.78,666.95,1.52983997]
[1752089109715,3.3515222,667.78,666.83,2.102]
[1752089109716,3.3515222,667.76,666.96,1.52983997]
[1752089109918,3.3515222,667.79,666.97,1.52983997]
[1752089110113,3.3515222,667.79,666.83,2.102]
[1752089110114,3.3515222,667.77,666.98,1.52983997]
[1752089110313,3.3515222,667.71,666.99,1.52983997]
[1752089110514,3.3515222,667.78,667.0,1.52983997]
[1752089110713,3.3515222,667.8,667.01,1.52983997]
[1752089110919,3.3515222,667.8,667.02,1.52983997]
[1752089111214,3.3515222,667.8,667.03,1.52983997]
[1752089111513,3.3515222,667.83,667.04,1.52983997]
[1752089111719,3.3515222,667.82,667.05,1.52983997]
[1752089111915,3.3515222,667.82,667.06,1.52983997]
[1752089112218,3.3515222,667.82,667.07,1.52983997]
[1752089112416,3.3515222,667.82,667.08,1.52983997]
[1752089112618,3.3515222,667.82,667.09,1.52983997]
[1752089112819,3.3515222,667.82,667.1,1.52983997]
[1752089113016,3.3515222,667.82,667.11,1.52983997]
[1752089113219,3.3515222,667.82,667.12,1.52983997]
[1752089113415,3.3515222,667.85,667.13,1.52983997]
[1752089113717,3.3515222,667.85,667.14,1.52983997]
[1752089113919,3.3515222,667.85,667.15,1.52983997]
[1752089114116,0.26066244,668.06,667.16,1.52983997]
[1752089114316,0.26066244,668.06,667.17,1.52983997]
[1752089114520,0.26066244,668.06,667.18,1.52983997]
[1752089114717,0.26066244,668.06,667.19,1.52983997]
[1752089114916,0.26066244,668.06,667.2,1.52983997]
[1752089115219,0.26066244,668.06,666.83,2.102]
[1752089115417,0.26066244,668.06,666.84,1.53007124]
[1752089115615,0.26066244,668.06,666.85,1.53007124]
[1752089115816,0.26066244,668.06,666.86,1.53007124]
[1752089116019,0.26066244,668.06,666.87,1.53007124]
[1752089116215,0.26066244,668.06,666.88,1.53007124]
[1752089116417,0.26066244,668.06,666.89,1.53007124]
[1752089116618,0.26066244,668.06,666.9,1.53007124]
[1752089116817,0.26066244,668.06,666.91,1.53007124]
[1752089117122,0.26066244,668.06,666.92,1.53007124]
[1752089117321,0.26066244,668.06,666.93,1.53007124]
[1752089117623,0.26066244,668.06,666.94,1.53007124]
[1752089117919,0.26066244,668.06,666.95,1.53007124]
[1752089118123,0.26066244,668.06,666.96,1.53007124]
[1752089118420,0.26066244,668.06,666.97,1.53007124]
[1752089118622,0.26066244,668.06,666.98,1.53007124]
[1752089118823,0.26066244,668.06,666.99,1.53007124]
[1752089119022,0.26066244,668.06,667.0,1.53007124]
[1752089119223,0.26066244,668.06,667.01,1.53007124]
[1752089119522,0.26066244,668.06,667.02,1.53007124]
[1752089119820,0.26066244,668.06,667.03,1.53007124]
[1752089120119,0.26066244,668.06,666.83,2.102]
[1752089120322,0.26066244,668.06,666.84,1.53025275]
[1752089120523,0.26066244,668.06,666.85,1.53025275]
[1752089120819,0.26066244,668.06,666.86,1.53025275]
[1752089121020,0.26066244,668.06,666.87,1.53025275]
[1752089121220,0.26066244,668.06,666.88,1.53025275]
[1752089121423,0.26066244,668.06,666.89,1.53025275]
[1752089121424,3.3515222,667.96,666.89,1.53025275]
[1752089121722,3.3515222,667.96,666.9,1.53025275]
[1752089121924,3.3515222,667.96,666.91,1.53025275]
[1752089122223,3.3515222,667.96,666.92,1.53025275]
[1752089122422,3.3515222,667.97,666.93,1.53025275]
[1752089122623,3.3515222,667.97,666.94,1.53025275]
[1752089122823,3.3515222,667.85,666.95,1.53025275]
[1752089123025,3.3515222,667.85,666.96,1.53025275]
[1752089123223,3.3515222,667.85,666.97,1.53025275]
[1752089123423,3.3515222,667.86,666.98,1.53025275]
[1752089123724,3.3515222,667.86,666.99,1.53025275]
[1752089123924,3.3515222,667.86,667.0,1.53025275]
[1752089124121,3.3515222,667.86,667.01,1.53025275]
[1752089124324,3.3515222,667.86,667.02,1.53025275]
[1752089124524,3.3515222,667.86,667.03,1.53025275]
[1752089124727,3.3515222,667.85,667.04,1.53025275]
[1752089125022,3.3515222,667.85,667.05,1.53025275]
[1752089125221,3.3515222,667.87,667.06,1.53025275]
[1752089125423,3.3515222,667.88,667.07,1.53025275]
[1752089125627,3.3515222,667.88,667.08,1.53025275]
[1752089125924,3.3515222,667.88,667.09,1.53025275]
[1752089126123,3.3515222,667.87,667.1,1.53025275]
[1752089126322,3.3515222,667.87,667.11,1.53025275]
[1752089126524,3.3515222,667.87,667.12,1.53025275]
[1752089126722,3.3515222,667.86,667.13,1.53025275]
[1752089126926,3.3515222,667.86,667.14,1.53025275]
[1752089127127,3.3515222,667.86,666.89,1.67036889]
[1752089127128,3.3515222,667.87,667.15,1.53025275]
[1752089127325,3.3515222,667.87,667.16,1.53025275]
[1752089127527,3.3515222,667.87,666.88,1.67036889]
[1752089127725,3.3515222,667.89,666.89,1.53034976]
[1752089127924,3.3515222,667.89,666.9,1.53034976]
[1752089128122,3.3515222,667.89,666.91,1.53034976]
[1752089128327,3.3515222,667.89,666.92,1.53034976]
[1752089128526,3.3515222,667.89,666.93,1.53034976]
[1752089128725,3.3515222,667.89,666.94,1.53034976]
[1752089128926,3.3515222,667.89,666.95,1.53034976]
[1752089129224,3.3515222,667.89,666.96,1.53034976]
[1752089129426,3.3515222,667.89,666.97,1.53034976]
[1752089129627,3.3515222,667.89,666.98,1.53034976]
[1752089129826,3.3515222,667.89,666.99,1.53034976]
[1752089130129,3.3515222,667.89,667.0,1.53034976]
[1752089130327,3.3515222,667.89,667.01,1.53034976]
[1752089130526,3.3515222,667.89,667.02,1.53034976]
[1752089130729,3.3515222,667.92,667.03,1.53034976]
[1752089130926,3.3515222,667.92,667.04,1.53034976]
[1752089131127,3.3515222,667.92,667.05,1.53034976]
[1752089131330,3.3515222,667.92,667.06,1.53034976]
[1752089131534,3.3515222,667.91,667.07,1.53034976]
[1752089131731,3.3515222,667.92,667.08,1.53034976]
[1752089131934,3.3515222,667.92,667.09,1.53034976]
[1752089132135,3.3515222,667.92,667.1,1.53069213]
[1752089132332,3.3515222,667.92,667.11,1.53069213]
[1752089132633,3.3515222,667.92,667.12,1.53069213]
[1752089132831,3.3515222,667.92,667.13,1.53069213]
[1752089133035,3.3515222,667.92,667.14,1.53069213]
[1752089133235,3.3515222,667.92,667.15,1.53069213]
[1752089133432,3.3515222,667.92,667.16,1.53069213]
[1752089133637,3.3515222,667.92,667.17,1.53069213]
[1752089133834,3.3515222,667.92,667.18,1.53069213]
[1752089134034,3.3515222,667.92,667.19,1.53069213]
[1752089134237,3.3515222,667.91,666.91,1.67083995]
[1752089134534,3.3515222,667.91,666.92,1.53079426]
[1752089134732,3.3515222,667.91,666.93,1.53079426]
[1752089134937,3.3515222,667.91,666.94,1.53079426]
[1752089135138,3.3515222,667.91,666.95,1.53079426]
[1752089135338,3.3515222,667.89,666.96,1.53079426]
[1752089135537,3.3515222,667.88,666.97,1.53079426]
[1752089135739,3.3515222,667.88,666.98,1.53079426]
[1752089136041,3.3515222,667.88,666.99,1.53079426]
[1752089136337,3.3515222,667.88,667.0,1.53079426]
[1752089136539,3.3515222,667.88,667.01,1.53079426]
[1752089136741,3.3515222,667.87,667.02,1.53079426]
[1752089136940,3.3515222,667.87,667.03,1.53079426]
[1752089137141,3.3515222,667.87,667.04,1.53079426]
[1752089137441,3.3515222,667.87,667.05,1.53079426]
[1752089137637,0.26066244,668.06,667.06,1.53079426]
[1752089137638,3.3515222,667.84,667.06,1.53079426]
[1752089137839,3.3515222,667.84,667.07,1.53079426]
[1752089138041,3.3515222,667.84,667.08,1.53079426]
[1752089138238,3.3515222,667.84,667.09,1.53079426]
[1752089138439,3.3515222,667.84,667.1,1.53079426]
[1752089138639,3.3515222,667.84,667.11,1.53079426]
[1752089138843,3.3515222,667.84,667.12,1.53079426]
[1752089139044,3.3515222,667.84,667.13,1.53079426]
[1752089139241,3.3515222,667.84,667.14,1.53079426]
[1752089139544,3.3515222,667.84,667.15,3.68779426]
[1752089139840,3.3515222,667.84,667.16,1.53079426]
[1752089140040,3.3515222,667.85,667.17,1.53079426]
[1752089140244,3.3515222,667.83,667.18,1.53079426]
[1752089140441,3.3515222,667.83,667.19,1.53079426]
[1752089140641,3.3515222,667.83,667.15,2.157]
[1752089140841,3.3515222,667.85,667.16,1.53075085]
[1752089141043,3.3515222,667.85,667.17,1.53075085]
[1752089141243,3.3515222,667.85,667.18,1.53075085]
[1752089141545,3.3515222,667.85,667.19,1.53075085]
[1752089141745,3.3515222,667.85,667.2,1.53075085]
[1752089141943,3.3515222,667.84,667.21,1.53075085]
[1752089142144,3.3515222,667.84,667.15,2.157]
[1752089142341,3.3515222,667.83,667.16,1.53075537]
[1752089142546,3.3515222,667.83,667.17,1.53075537]
[1752089142745,3.3515222,667.83,667.18,1.53075537]
[1752089142941,3.3515222,667.83,667.19,1.53075537]
[1752089143146,3.3515222,667.84,667.2,1.53075537]
[1752089143346,3.3515222,667.84,667.21,1.53075537]
[1752089143548,3.3515222,667.84,667.22,1.53075537]
[1752089143743,3.3515222,667.83,667.15,2.157]
[1752089143942,3.3515222,667.83,667.16,1.5307986]
[1752089144144,3.3515222,667.83,667.17,1.5307986]
[1752089144346,3.3515222,667.83,667.18,1.5307986]
[1752089144648,3.3515222,667.83,667.19,1.5307986]
[1752089144850,3.3515222,667.83,667.2,1.5307986]
[1752089145145,3.3515222,667.83,667.21,1.5307986]
[1752089145347,3.3515222,667.83,667.22,1.5307986]
[1752089145545,3.3515222,667.83,667.15,2.157]
[1752089145747,3.3515222,667.83,667.16,1.53085159]
[1752089145949,3.3515222,667.83,667.17,1.53085159]
[1752089146148,3.3515222,667.83,667.18,1.53085159]
[1752089146349,3.3515222,667.84,667.19,1.53085159]
[1752089146545,3.3515222,667.84,667.2,1.53085159]
[1752089146749,3.3515222,667.84,667.21,1.53085159]
[1752089146947,3.3515222,667.84,667.22,1.53085159]
[1752089147248,3.3515222,667.84,667.15,2.157]
[1752089147447,3.3515222,667.84,667.16,1.53088976]
[1752089147748,3.3515222,667.84,667.17,1.53088976]
[1752089147951,3.3515222,667.84,667.18,1.53088976]
[1752089148151,3.3515222,667.84,667.19,1.53088976]
[1752089148353,3.3515222,667.83,667.2,1.53088976]
[1752089148553,3.3515222,667.83,667.21,1.53088976]
[1752089148849,3.3515222,667.83,667.22,1.53088976]
[1752089149054,3.3515222,667.83,667.15,2.157]
[1752089149355,3.3515222,667.83,667.16,1.53090404]
[1752089149556,3.3515222,667.83,667.17,1.53090404]
[1752089149753,3.3515222,667.83,667.18,1.53090404]
[1752089149949,0.26066244,668.06,667.15,2.157]
[1752089149950,3.3515222,667.84,667.19,1.53090404]
[1752089150253,3.3515222,667.84,667.2,1.53090404]
[1752089150450,3.3515222,667.84,667.21,1.53090404]
[1752089150655,3.3515222,667.83,667.15,2.157]
[1752089150855,3.3515222,667.82,667.16,1.53087357]
[1752089151055,3.3515222,667.82,667.17,1.53087357]
[1752089151255,3.3515222,667.82,667.18,1.53087357]
[1752089151453,3.3515222,667.82,667.19,1.53087357]
[1752089151653,3.3515222,667.82,667.2,1.53087357]
[1752089151953,3.3515222,667.82,667.21,1.53087357]
[1752089152152,3.3515222,667.81,667.15,2.157]
[1752089152358,3.3515222,667.81,667.16,1.5309077]
[1752089152557,3.3515222,667.81,667.17,1.5309077]
[1752089152752,3.3515222,667.81,667.18,1.5309077]
[1752089152954,3.3515222,667.81,667.19,1.5309077]
[1752089153254,3.3515222,667.81,667.2,1.5309077]
[1752089153453,3.3515222,667.81,667.21,1.5309077]
[1752089153656,3.3515222,667.81,667.22,1.53097096]
[1752089153858,3.3515222,667.97,667.15,2.157]
[1752089154158,3.3515222,667.97,667.16,1.53097096]
[1752089154357,3.3515222,667.97,667.17,1.53097096]
[1752089154555,3.3515222,667.96,667.18,1.53097096]
[1752089154758,3.3515222,667.96,667.19,1.53097096]
[1752089154956,3.3515222,667.96,667.2,1.53097096]
[1752089155158,3.3515222,667.96,667.21,1.53097096]
[1752089155354,3.3515222,667.97,667.22,1.53097096]
[1752089155559,3.3515222,667.96,667.15,2.157]
[1752089155760,3.3515222,667.96,667.16,1.53105876]
[1752089155959,3.3515222,667.96,667.17,1.53105876]
[1752089156156,3.3515222,667.96,667.18,1.53105876]
[1752089156454,3.3515222,667.96,667.19,1.53105876]
[1752089156758,3.3515222,667.96,667.2,1.53105876]
[1752089156956,3.3515222,667.96,667.21,1.53105876]
[1752089157155,3.3515222,667.96,667.22,1.53105876]
[1752089157355,3.3515222,667.96,667.15,2.157]
[1752089157557,3.3515222,667.96,667.16,1.53116407]
[1752089157759,3.3515222,667.96,667.17,1.53116407]
[1752089157955,3.3515222,667.96,667.18,1.53116407]
[1752089158157,3.3515222,667.96,667.19,1.53116407]
[1752089158359,3.3515222,667.96,667.2,1.53116407]
[1752089158555,3.3515222,667.96,667.21,1.53116407]
[1752089158757,3.3515222,667.96,667.22,1.53116407]
[1752089158957,3.3515222,667.96,667.15,2.157]
[1752089159156,3.3515222,667.96,667.16,1.5312285]
[1752089159354,3.3515222,667.96,667.17,1.5312285]
[1752089159559,3.3515222,667.95,667.18,1.5312285]
[1752089159760,3.3515222,667.98,667.19,1.5312285]
[1752089159957,3.3515222,667.98,667.2,1.5312285]
[1752089160258,3.3515222,667.98,667.21,1.5312285]
[1752089160461,3.3515222,667.98,667.22,1.5312285]
[1752089160661,3.3515222,667.99,667.15,2.157]
[1752089160858,3.3515222,667.92,667.16,1.53141761]
[1752089161063,3.3515222,667.92,667.15,2.157]
[1752089161256,3.3515222,667.92,667.16,1.53141761]
[1752089161458,3.3515222,667.92,667.15,2.157]
[1752089161756,3.3515222,667.92,667.16,1.53145176]
[1752089161956,3.3515222,667.92,667.15,2.157]
[1752089162160,3.3515222,667.82,667.16,1.53153359]
[1752089162360,3.3515222,667.81,667.15,2.157]
[1752089162561,3.3515222,667.81,667.16,1.53165785]
[1752089162762,3.3515222,667.83,667.15,2.157]
[1752089162959,3.3515222,667.82,667.16,1.53165785]
[1752089163262,3.3515222,667.82,667.15,2.157]
[1752089163462,3.3515222,667.82,667.16,1.53169018]
[1752089163657,3.3515222,667.82,667.17,1.53169018]
[1752089163957,3.3515222,667.82,667.15,2.157]
[1752089164159,3.3515222,667.82,667.16,1.53188456]
[1752089164461,3.3515222,667.84,667.17,1.53188456]
[1752089164659,3.3515222,667.84,667.15,2.157]
[1752089164860,3.3515222,667.84,667.16,1.53220796]
[1752089165063,3.3515222,667.84,667.17,1.53220796]
[1752089165359,3.3515222,667.83,667.18,1.53223625]
[1752089165560,3.3515222,667.83,667.19,1.53223625]
[1752089165762,3.3515222,667.83,667.15,2.157]
[1752089165963,3.3515222,667.83,667.16,1.53281868]
[1752089166261,0.26066244,668.06,667.15,2.157]
[1752089166262,3.3515222,667.79,667.17,1.53281868]
[1752089166460,3.3515222,667.77,667.18,1.53281868]
[1752089166763,3.3515222,667.77,667.19,1.53281868]
[1752089166961,3.3515222,667.77,667.2,1.53281868]
[1752089167161,3.3515222,667.77,667.15,2.157]
[1752089167364,3.3515222,667.76,667.16,1.53367284]
[1752089167661,3.3515222,667.76,667.17,1.53367284]
[1752089167861,3.3515222,667.76,667.18,1.53367284]
[1752089168065,3.3515222,667.76,667.19,1.53367284]
[1752089168265,3.3515222,667.76,667.2,1.53367284]
[1752089168466,3.3515222,667.74,667.21,1.53367284]
[1752089168666,3.3515222,667.74,667.22,1.53367284]
[1752089168962,3.3515222,667.74,667.15,2.157]
[1752089169161,3.3515222,667.73,667.16,1.53427842]
[1752089169361,3.3515222,667.72,667.17,1.53427842]
[1752089169665,3.3515222,667.72,667.18,1.53427842]
[1752089169866,3.3515222,667.72,667.19,1.53427842]
[1752089170167,3.3515222,667.72,667.2,1.53427842]
[1752089170462,3.3515222,667.72,667.21,1.53427842]